fUST/lending_fUST_20240918
["ID","MTS","AMOUNT","RATE_DAILY","PERIOD"]
[338412336,1726613438751,-533.75,0.000249,31]
[338412337,1726613438764,-533.75,0.000249,31]
[338412338,1726613438778,-533.75,0.000249,31]
[338412339,1726613438793,-533.75,0.000249,31]
[338412340,1726613438807,-533.75,0.000249,31]
[338412341,1726613438820,-533.75,0.000249,31]
[338412342,1726613438833,-5975.84,0.00024931,2]
[338412343,1726613438846,-545.0,0.00024932,2]
[338412344,1726613438860,-302.33493269,0.00024952,2]
[338412345,1726613438872,-302.33493269,0.0002496,2]
[338412346,1726613438885,-1000.0,0.00024989,2]
[338412347,1726613438898,-151.0,0.00025,7]
[338412348,1726613438911,-151.0,0.00025,7]
[338412349,1726613438924,-151.0,0.00025,7]
[338412350,1726613438937,-300.0,0.00025,2]
[338412351,1726613438949,-243.5,0.00025,2]
[338412352,1726613438962,-300.0,0.00025,2]
[338412353,1726613438974,-243.5,0.00025,2]
[338412354,1726613438986,-545.0,0.00025,2]
[338412355,1726613438999,-300.0,0.00025,2]
[338412356,1726613439012,-243.5,0.00025,2]
[338412357,1726613439021,-300.0,0.00025,2]
[338412358,1726613439031,-243.5,0.00025,2]
[338412359,1726613439040,-199.999999,0.00025,120]
[338412360,1726613439050,-179.03,0.0002509,9]
[338412361,1726613439059,-165.20308892,0.00025096,2]
[338412362,1726613439068,-301.67147251,0.00025196,2]
[338412363,1726613439078,-453.50239903,0.000252,4]
[338412364,1726613439088,-5975.84,0.00025205,2]
[338412365,1726613439097,-300.0,0.000253,2]
[338412366,1726613439107,-300.0,0.000253,2]
[338412367,1726613439463,-533.75,0.000253,31]
[338412368,1726613439492,-533.75,0.000253,31]
[338412369,1726613439508,-533.75,0.000253,31]
[338412370,1726613439518,-533.75,0.000253,31]
[338412371,1726613439527,-533.75,0.000253,31]
[338412372,1726613439537,-533.75,0.000253,31]
[338412373,1726613439547,-533.75,0.000253,31]
[338412374,1726613439556,-533.75,0.000253,31]
[338412375,1726613439565,-533.75,0.000253,31]
[338412376,1726613439575,-533.75,0.000253,31]
[338412377,1726613439584,-533.75,0.000253,31]
[338412378,1726613439593,-533.75,0.000253,31]
[338412379,1726613439602,-533.75,0.000253,31]
[338412380,1726613439613,-533.75,0.000253,31]
[338412382,1726613439627,-533.75,0.000253,31]
[338412383,1726613439637,-533.75,0.000253,31]
[338412384,1726613439646,-533.75,0.000253,31]
[338412385,1726613439656,-533.75,0.000253,31]
[338412386,1726613439665,-533.75,0.000253,31]
[338412387,1726613439674,-533.75,0.000253,31]
[338412389,1726613439684,-533.75,0.000253,31]
[338412390,1726613439694,-533.75,0.000253,31]
[338412391,1726613439703,-533.75,0.000253,31]
[338412392,1726613439713,-533.75,0.000253,31]
[338412393,1726613439722,-300.0,0.000253,2]
[338412394,1726613439732,-300.0,0.000253,2]
[338412395,1726613439742,-165.20308892,0.00025425,2]
[338412396,1726613439754,-165.20308891,0.00025425,2]
[338412397,1726613439764,-453.50239903,0.0002544,4]
[338412398,1726613439776,-57060.904751,0.00025459,3]
[338412399,1726613439787,-5975.84,0.00025479,2]
[338412400,1726613439798,-500.0,0.00025538,2]
[338412401,1726613439809,-5000.0,0.00025645,7]
[338412402,1726613439820,-5000.0,0.00025645,2]
[338412403,1726613439831,-453.50239903,0.0002568,4]
[338412404,1726613439842,-533.75,0.000257,31]
[338412405,1726613439853,-533.75,0.000257,31]
[338412406,1726613439864,-533.75,0.000257,31]
[338412407,1726613439875,-533.75,0.000257,31]
[338412408,1726613439888,-533.75,0.000257,31]
[338412409,1726613439900,-533.75,0.000257,31]
[338412410,1726613439913,-533.75,0.000257,31]
[338412411,1726613439924,-533.75,0.000257,31]
[338412412,1726613439935,-533.75,0.000257,31]
[338412413,1726613439947,-533.75,0.000257,31]
[338412414,1726613439957,-533.75,0.000257,31]
[338412415,1726613439967,-533.75,0.000257,31]
[338412416,1726613439976,-533.75,0.000257,31]
[338412417,1726613439990,-533.75,0.000257,31]
[338412419,1726613440001,-533.75,0.000257,31]
[338412422,1726613440013,-533.75,0.000257,31]
[338412424,1726613440023,-533.75,0.000257,31]
[338412426,1726613440034,-533.75,0.000257,31]
[338412428,1726613440045,-533.75,0.000257,31]
[338412430,1726613440056,-533.75,0.000257,31]
[338412432,1726613440066,-533.75,0.000257,31]
[338412434,1726613440076,-533.75,0.000257,31]
[338412436,1726613440086,-533.75,0.000257,31]
[338412438,1726613440097,-533.75,0.000257,31]
[338412439,1726613440107,-5975.84,0.00025753,2]
[338412441,1726613440120,-165.20308892,0.00025753,2]
[338412442,1726613440131,-545.0,0.0002589,2]
[338412443,1726613440141,-453.50239903,0.0002592,4]
[338412444,1726613440151,-150.0,0.00026,2]
[338412445,1726613440161,-1000.5,0.00026,31]
[338412446,1726613440172,-1000.5,0.00026,31]
[338412447,1726613440182,-1000.5,0.00026,31]
[338412448,1726613440192,-1000.5,0.00026,31]
[338412449,1726613440204,-22967.04,0.00026,14]
[338412450,1726613440214,-1138.1,0.00026,31]
[338412451,1726613440224,-5975.84,0.00026027,2]
[338412452,1726613440239,-1565.74,0.000261,7]
[338412453,1726613440250,-453.0952602,0.0002616,4]
[338412454,1726613440262,-4067.79,0.000262,14]
[338412455,1726613440273,-50190.28,0.000262,14]
[338412456,1726613440283,-533.75,0.000262,31]
[338412457,1726613440295,-533.75,0.000262,31]
[338412458,1726613440307,-533.75,0.000262,31]
[338412459,1726613440318,-533.75,0.000262,31]
[338412460,1726613440330,-533.75,0.000262,31]
[338412461,1726613440339,-533.75,0.000262,31]
[338412462,1726613440350,-533.75,0.000262,31]
[338412463,1726613440362,-533.75,0.000262,31]
[338412464,1726613440372,-533.75,0.000262,31]
[338412465,1726613440382,-533.75,0.000262,31]
[338412466,1726613440391,-533.75,0.000262,31]
[338412467,1726613440402,-533.75,0.000262,31]
[338412468,1726613440412,-533.75,0.000262,31]
[338412469,1726613440421,-533.75,0.000262,31]
[338412470,1726613440431,-533.75,0.000262,31]
[338412471,1726613440440,-533.75,0.000262,31]
[338412472,1726613440450,-533.75,0.000262,31]
[338412473,1726613440459,-533.75,0.000262,31]
[338412474,1726613440469,-533.75,0.000262,31]
[338412475,1726613440478,-533.75,0.000262,31]
[338412476,1726613440488,-533.75,0.000262,31]
[338412477,1726613440498,-533.75,0.000262,31]
[338412478,1726613440507,-533.75,0.000262,31]
[338412479,1726613440517,-533.75,0.000262,31]
[338412480,1726613440526,-300.0,0.000263,2]
[338412481,1726613440535,-300.0,0.000263,2]
[338412482,1726613440545,-300.0,0.000263,2]
[338412483,1726613440554,-300.0,0.000263,2]
[338412484,1726613440563,-5975.84,0.00026301,2]
[338412485,1726613440572,-660.0,0.00026301,2]
[338412486,1726613440581,-1200.95767359,0.00026545,2]
[338412487,1726613440591,-5975.84,0.00026575,2]
[338412488,1726613440600,-26980.20961086,0.000266,5]
[338412489,1726613440610,-533.75,0.000266,31]
[338412490,1726613440621,-533.75,0.000266,31]
[338412491,1726613440634,-533.75,0.000266,31]
[338412492,1726613440644,-533.75,0.000266,31]
[338412493,1726613440656,-533.75,0.000266,31]
[338412494,1726613440667,-533.75,0.000266,31]
[338412495,1726613440679,-533.75,0.000266,31]
[338412496,1726613440689,-533.75,0.000266,31]
[338412497,1726613440701,-533.75,0.000266,31]
[338412498,1726613440712,-533.75,0.000266,31]
[338412499,1726613440723,-533.75,0.000266,31]
[338412500,1726613440733,-533.75,0.000266,31]
[338412501,1726613440744,-268260.46,0.000266,14]
[338412502,1726613440754,-1500.0,0.00026646,2]
[338412503,1726613440764,-5975.84,0.00026849,2]
[338412504,1726613440774,-1000.0,0.00026908,2]
[338412505,1726613440785,-150.0,0.00027,2]
[338412506,1726613440796,-948.75901509,0.00027,120]
[338412507,1726613440807,-5975.84,0.00027123,2]
[338412508,1726613440818,-548.0,0.00027185,2]
[338412509,1726613440828,-300.0,0.000273,2]
[338412510,1726613440840,-300.0,0.000273,2]
[338412511,1726613440851,-4067.79,0.000273,14]
[338412512,1726613440863,-300.0,0.000273,2]
[338412513,1726613440874,-300.0,0.000273,2]
[338412514,1726613440885,-22967.04,0.000273,14]
[338412515,1726613440896,-5975.84,0.00027397,2]
[338412516,1726613440906,-1693.874661,0.00027397,30]
[338412517,1726613440919,-888.19,0.00027399,2]
[338412518,1726613440929,-888.19,0.00027399,2]
[338412519,1726613440940,-888.19,0.00027399,2]
[338412520,1726613440951,-888.19,0.00027399,2]
[338412521,1726613440961,-888.19,0.00027399,2]
[338412522,1726613440970,-888.19,0.00027399,2]
[338412523,1726613440979,-888.19,0.00027399,2]
[338412524,1726613440988,-888.19,0.00027399,2]
[338412525,1726613440998,-888.19,0.00027399,2]
[338412526,1726613441010,-888.19,0.00027399,2]
[338412527,1726613441020,-50190.28,0.000274,14]
[338412528,1726613441031,-1565.74,0.000274,7]
[338412529,1726613441042,-150.112233,0.000276,7]
[338412530,1726613441053,-524.0,0.0002765,2]
[338412531,1726613441065,-150.0,0.0002765,2]
[338412532,1726613441076,-1076.0,0.0002765,2]
[338412533,1726613441086,-5975.84,0.00027671,2]
[338412534,1726613441098,-500.0,0.00027673,5]
[338412535,1726613441110,-500.0,0.00027673,5]
[338412536,1726613441122,-500.0,0.00027673,5]
[338412537,1726613441132,-535.37981013,0.00027673,5]
[338412538,1726613441142,-268260.46,0.000277,14]
[338412539,1726613441153,-179.934442,0.000277,7]
[338412540,1726613441164,-179.934442,0.000277,7]
[338412541,1726613441175,-151.0,0.000277,7]
[338412542,1726613441185,-151.0,0.000277,7]
[338412543,1726613441196,-151.0,0.000277,7]
[338412544,1726613441206,-151.0,0.000277,7]
[338412545,1726613441217,-5975.84,0.00027945,2]
[338412546,1726613441229,-150.0,0.00028,2]
[338412547,1726613441241,-174.41833722,0.00028,120]
[338412548,1726613441252,-317.271666,0.00028031,2]
[338412549,1726613441271,-4595.92,0.00028107,4]
[338412550,1726613441285,-500.0,0.00028198,10]
[338412551,1726613441297,-500.0,0.00028198,10]
[338412552,1726613441308,-500.0,0.00028198,10]
[338412553,1726613441319,-500.0,0.00028198,10]
[338412554,1726613441329,-500.0,0.00028198,10]
[338412555,1726613441339,-500.0,0.00028198,10]
[338412556,1726613441351,-500.0,0.00028198,10]
[338412557,1726613441362,-500.0,0.00028198,10]
[338412558,1726613441373,-500.0,0.00028198,10]
[338412559,1726613441383,-500.0,0.00028198,10]
[338412560,1726613441394,-500.0,0.00028198,10]
[338412561,1726613441403,-500.0,0.00028198,10]
[338412562,1726613441414,-500.0,0.00028198,10]
[338412563,1726613441423,-500.0,0.00028198,10]
[338412564,1726613441433,-500.0,0.00028198,10]
[338412565,1726613441444,-943.8278946,0.00028198,10]
[338412566,1726613441454,-500.0,0.00028198,10]
[338412567,1726613441464,-973.83415027,0.00028198,10]
[338412568,1726613441473,-500.0,0.00028198,10]
[338412569,1726613441483,-500.0,0.00028198,10]
[338412570,1726613441494,-500.0,0.00028198,10]
[338412571,1726613441503,-500.0,0.00028198,10]
[338412572,1726613441514,-500.0,0.00028198,10]
[338412573,1726613441525,-500.0,0.00028198,10]
[338412574,1726613441537,-500.0,0.00028198,10]
[338412575,1726613441547,-500.0,0.00028198,10]
[338412576,1726613441559,-500.0,0.00028198,10]
[338412577,1726613441571,-500.0,0.00028198,10]
[338412578,1726613441582,-150.112233,0.000282,7]
[338412579,1726613441593,-5975.93957178,0.00028219,2]
[338412580,1726613441603,-300.0,0.000283,2]
[338412581,1726613441614,-300.0,0.000283,2]
[338412582,1726613441627,-300.0,0.000283,2]
[338412583,1726613441636,-300.0,0.000283,2]
[338412584,1726613441647,-1200.95767351,0.00028333,2]
[338412585,1726613441659,-166.422157,0.00028493,2]
[338412586,1726613441671,-166.422157,0.00028493,11]
[338412587,1726613441680,-166.422157,0.00028493,20]
[338412588,1726613441692,-166.422157,0.00028493,29]
[338412589,1726613441705,-166.422157,0.00028493,38]
[338412590,1726613441716,-166.422157,0.00028493,47]
[338412591,1726613441727,-166.422157,0.00028493,56]
[338412592,1726613441740,-166.422157,0.00028493,65]
[338412593,1726613441752,-166.422157,0.00028493,74]
[338412594,1726613441762,-166.422157,0.00028493,83]
[338412595,1726613441773,-166.422157,0.00028493,92]
[338412596,1726613441783,-166.422157,0.00028493,101]
[338412597,1726613441796,-166.422157,0.00028493,110]
[338412598,1726613441808,-166.422157,0.00028493,119]
[338412599,1726613441818,-160.0,0.00028499,10]
[338412600,1726613441830,-150.112233,0.000288,9]
[338412601,1726613441841,-4067.79,0.000288,14]
[338412602,1726613441852,-50190.28,0.000288,14]
[338412603,1726613441864,-511.264871,0.0002888,2]
[338412604,1726613441879,-22967.04,0.000289,14]
[338412605,1726613441889,-615.387949,0.00028911,5]
[338412606,1726613441900,-2000.0,0.00028987,5]
[338412607,1726613441913,-545.0,0.00028997,2]
[338412608,1726613441925,-150.0,0.00029,2]
[338412609,1726613441938,-1565.74,0.00029,7]
[338412610,1726613441948,-1000.0,0.00029042,5]
[338412611,1726613441961,-1000.0,0.00029042,5]
[338412612,1726613441973,-1000.0,0.00029073,5]
[338412613,1726613441983,-160.0,0.000291,120]
[338412614,1726613441998,-268260.46,0.000291,14]
[338412615,1726613442008,-179.934442,0.000291,7]
[338412616,1726613442019,-179.934442,0.000291,7]
[338412617,1726613442029,-151.0,0.000291,7]
[338412618,1726613442041,-151.0,0.000291,7]
[338412619,1726613442052,-151.0,0.000291,7]
[338412620,1726613442064,-151.0,0.000291,7]
[338412621,1726613442074,-300.0,0.000293,2]
[338412622,1726613442085,-300.0,0.000293,2]
[338412623,1726613442097,-300.0,0.000293,2]
[338412624,1726613442108,-300.0,0.000293,2]
[338412625,1726613442120,-163.449493,0.00029313,2]
[338412626,1726613442132,-150.112233,0.000294,8]
[338412627,1726613442143,-4595.92,0.00029477,6]
[338412628,1726613442161,-1791.85273633,0.00029621,5]
[338412629,1726613442171,-150.0,0.0002997,2]
[338412630,1726613442181,-151.0,0.0003,120]
[338412631,1726613442190,-151.0,0.0003,120]
[338412632,1726613442200,-150.112233,0.0003,8]
[338412633,1726613442210,-164.0,0.0003,2]
[338412634,1726613442219,-158.0,0.0003,2]
[338412635,1726613442229,-164.0,0.0003,2]
[338412636,1726613442239,-164.0,0.0003,2]
[338412637,1726613442248,-150.0,0.0003,2]
[338412638,1726613442258,-4067.79,0.0003,14]
[338412639,1726613442269,-164.0,0.0003,2]
[338412640,1726613442281,-261.0,0.0003,2]
[338412641,1726613442294,-320.92540982,0.0003,5]
[338412642,1726613442310,-500.0,0.0003,120]
[338412643,1726613442322,-262.0,0.0003,2]
[338412644,1726613442333,-272.26277413,0.0003,2]
[338412645,1726613442343,-6354.21706966,0.00030081,2]
[338412646,1726613442353,-1200.95767351,0.00030121,2]
[338412647,1726613442363,-1198.04,0.00030136,2]
[338412648,1726613442374,-400.0,0.00030137,60]
[338412649,1726613442384,-160.0,0.00030178,3]
[338412650,1726613442394,-160.0,0.00030178,5]
[338412651,1726613442405,-50190.28,0.000302,14]
[338412652,1726613442415,-300.0,0.000303,3]
[338412654,1726613442425,-300.0,0.000303,3]
[338412656,1726613442436,-151.0,0.000303,7]
[338412658,1726613442447,-151.0,0.000303,7]
[338412660,1726613442459,-151.0,0.000303,7]
[338412661,1726613442470,-151.0,0.000303,7]
[338412662,1726613442481,-151.0,0.000303,7]
[338412663,1726613442492,-174.158696,0.000303,7]
[338412664,1726613442503,-151.0,0.000303,7]
[338412665,1726613442515,-247.063135,0.000303,7]
[338412666,1726613442526,-232.779575,0.000303,7]
[338412667,1726613442537,-161.163753,0.000303,7]
[338412668,1726613442548,-151.0,0.000303,7]
[338412669,1726613442561,-161.163753,0.000303,7]
[338412670,1726613442571,-151.0,0.000303,7]
[338412671,1726613442582,-151.0,0.000303,7]
[338412672,1726613442593,-151.0,0.000303,7]
[338412673,1726613442603,-151.0,0.000303,7]
[338412674,1726613442617,-151.0,0.000303,7]
[338412675,1726613442627,-151.0,0.000303,7]
[338412676,1726613442638,-151.0,0.000303,7]
[338412677,1726613442650,-151.0,0.000303,7]
[338412678,1726613442661,-151.0,0.000303,7]
[338412679,1726613442672,-151.0,0.000303,7]
[338412680,1726613442685,-151.0,0.000303,7]
[338412681,1726613442696,-151.0,0.000303,7]
[338412682,1726613442707,-151.0,0.000303,7]
[338412683,1726613442717,-300.0,0.000303,3]
[338412684,1726613442727,-151.0,0.000303,7]
[338412685,1726613442737,-151.0,0.000303,7]
[338412686,1726613442747,-300.0,0.000303,3]
[338412687,1726613442757,-151.0,0.000303,7]
[338412688,1726613442767,-666.655218,0.000303,7]
[338412689,1726613442777,-666.655218,0.000303,7]
[338412691,1726613442787,-1003.525729,0.000303,7]
[338412692,1726613442798,-1003.525729,0.000303,7]
[338412694,1726613442807,-150.01,0.00030354,2]
[338412695,1726613442817,-451.07814515,0.00030354,2]
[338412696,1726613442827,-13555.0,0.000304,22]
[338412697,1726613442840,-200.0,0.00030428,120]
[338412698,1726613442852,-200.0,0.00030465,120]
[338412699,1726613442864,-361.97,0.000305,7]
[338412700,1726613442876,-268260.46,0.000305,14]
[338412701,1726613442887,-179.934442,0.000305,7]
[338412702,1726613442900,-179.934442,0.000305,7]
[338412703,1726613442910,-22967.04,0.000305,14]
[338412704,1726613442923,-151.0,0.000305,7]
[338412705,1726613442932,-151.0,0.000305,7]
[338412710,1726613443134,-4011.8065,0.00030503,30]
[338412711,1726613443156,-500.0,0.00030575,60]
[338412712,1726613443168,-150.112233,0.000306,6]
[338412713,1726613443180,-1565.74,0.000306,7]
[338412714,1726613443192,-186.54416303,0.0003065,2]
[338412715,1726613443202,-524.0,0.0003065,2]
[338412716,1726613443213,-150.0,0.0003065,2]
[338412717,1726613443223,-1076.0,0.0003065,2]
[338412718,1726613443234,-320.0,0.000307,120]
[338412719,1726613443245,-153.0,0.00030767,2]
[338412720,1726613443255,-306.0,0.00030767,2]
[338412721,1726613443267,-153.0,0.00030767,2]
[338412722,1726613443278,-153.0,0.00030767,2]
[338412723,1726613443289,-153.0,0.00030767,2]
[338412724,1726613443301,-457.0,0.0003081,2]
[338412725,1726613443313,-545.0,0.0003081,2]
[338412726,1726613443324,-4595.92,0.00030847,8]
[338412727,1726613443334,-200.0,0.00031,2]
[338412728,1726613443345,-11387.14906933,0.00031,120]
[338412729,1726613443355,-1000.0,0.00031,31]
[338412730,1726613443367,-500.0,0.00031,120]
[338412731,1726613443379,-500.0,0.00031,120]
[338412732,1726613443390,-153.0,0.00031041,2]
[338412733,1726613443399,-153.0,0.00031041,2]
[338412734,1726613443411,-153.0,0.00031041,2]
[338412735,1726613443421,-1500.0,0.00031046,5]
[338412736,1726613443431,-1500.0,0.00031046,5]
[338412737,1726613443443,-572.0,0.00031068,2]
[338412738,1726613443454,-572.0,0.00031068,2]
[338412739,1726613443466,-457.0,0.00031068,2]
[338412740,1726613443477,-545.0,0.00031068,2]
[338412741,1726613443488,-153.0,0.00031096,2]
[338412742,1726613443499,-4067.79,0.000311,14]
[338412743,1726613443509,-500.0,0.00031123,60]
[338412744,1726613443519,-150.112233,0.000312,5]
[338412745,1726613443530,-50190.28,0.000312,14]
[338412746,1726613443540,-151.0,0.000313,7]
[338412747,1726613443550,-151.0,0.000313,7]
[338412748,1726613443571,-151.0,0.000313,7]
[338412749,1726613443582,-151.0,0.000313,7]
[338412750,1726613443593,-151.0,0.000313,7]
[338412751,1726613443604,-151.0,0.000313,7]
[338412752,1726613443615,-307.435287,0.000313,7]
[338412753,1726613443627,-161.163753,0.000313,7]
[338412754,1726613443639,-161.163753,0.000313,7]
[338412755,1726613443650,-151.0,0.000313,7]
[338412756,1726613443661,-151.0,0.000313,7]
[338412757,1726613443672,-151.0,0.000313,7]
[338412758,1726613443683,-151.0,0.000313,7]
[338412759,1726613443693,-151.0,0.000313,7]
[338412760,1726613443704,-151.0,0.000313,7]
[338412761,1726613443714,-151.0,0.000313,7]
[338412762,1726613443725,-262.507054,0.000313,7]
[338412763,1726613443736,-151.0,0.000313,7]
[338412764,1726613443746,-151.0,0.000313,7]
[338412765,1726613443757,-151.0,0.000313,7]
[338412766,1726613443767,-151.0,0.000313,7]
[338412767,1726613443778,-151.0,0.000313,7]
[338412768,1726613443791,-151.0,0.000313,7]
[338412769,1726613443801,-151.0,0.000313,7]
[338412770,1726613443812,-151.0,0.000313,7]
[338412771,1726613443822,-666.655218,0.000313,7]
[338412772,1726613443834,-666.655218,0.000313,7]
[338412773,1726613443845,-1003.525729,0.000313,7]
[338412774,1726613443857,-1003.525729,0.000313,7]
[338412775,1726613443868,-150.0,0.000314,120]
[338412776,1726613443881,-200.0,0.00031472,120]
[338412777,1726613443893,-250.23193933,0.00031473,5]
[338412778,1726613443906,-180378.46873777,0.000315,14]
[338412779,1726613444334,-11352.5871732,0.000315,14]
[338412780,1726613445507,-15027.57009117,0.000315,14]
[338412784,1726613446134,-44.50886469,0.000315,14]
[338412785,1726613446236,-446.22705441,0.000315,14]
[338412806,1726613447110,-156.67624291,0.00024701,7]
[338412807,1726613447120,-21182.81395324,0.000315,14]
[338412808,1726613447226,-3248.47411036,0.000315,14]
[338412809,1726613447492,-0.02059416,0.000315,14]
[338412810,1726613447504,-36579.789421,0.000315,14]
[338412811,1726613447514,-179.934442,0.000315,7]
[338412812,1726613447524,-179.934442,0.000315,7]
[338412813,1726613447534,-151.0,0.000315,7]
[338412814,1726613447544,-151.0,0.000315,7]
[338412815,1726613447554,-1198.04,0.00031506,2]
[338412816,1726613447564,-2500.0,0.00031578,5]
[338412817,1726613447574,-151.0,0.0003159,7]
[338412818,1726613447584,-151.0,0.0003159,7]
[338412819,1726613447594,-151.0,0.0003159,7]
[338412820,1726613447604,-151.0,0.0003159,7]
[338412821,1726613447614,-151.0,0.0003159,7]
[338412822,1726613447625,-151.0,0.0003159,7]
[338412823,1726613447635,-500.0,0.00031598,2]
[338412824,1726613447645,-22967.04,0.000316,14]
[338412825,1726613447654,-553.71703507,0.00031604,2]
[338412826,1726613447668,-500.0,0.00031611,2]
[338412827,1726613447678,-500.0,0.00031615,2]
[338412828,1726613447687,-500.0,0.0003162,2]
[338412829,1726613447697,-500.0,0.0003162,2]
[338412830,1726613447707,-500.0,0.00031623,2]
[338412831,1726613447716,-500.0,0.00031628,2]
[338412832,1726613447726,-500.0,0.00031637,2]
[338412833,1726613447736,-500.0,0.00031642,2]
[338412834,1726613447746,-500.0,0.00031643,2]
[338412835,1726613447756,-164.0,0.00031644,2]
[338412836,1726613447766,-164.0,0.00031644,2]
[338412837,1726613447776,-500.0,0.00031651,2]
[338412838,1726613447785,-500.0,0.00031658,2]
[338412839,1726613447795,-500.0,0.00031669,2]
[338412840,1726613447805,-500.0,0.00031671,60]
[338412841,1726613447815,-500.0,0.00031674,2]
[338412842,1726613447824,-1565.74,0.000317,7]
[338412843,1726613447834,-500.0,0.00031714,2]
[338412844,1726613447846,-151.0,0.00031753,120]
[338412845,1726613447856,-200.0,0.00031799,120]
[338412846,1726613447866,-150.112233,0.000318,8]
[338412847,1726613447875,-320.0,0.000318,120]
[338412848,1726613447885,-500.0,0.00031804,2]
[338412849,1726613447895,-572.0,0.00031845,2]
[338412850,1726613447904,-500.0,0.00031894,2]
[338412851,1726613447916,-1200.95767351,0.0003191,2]
[338412852,1726613447929,-256.5959061,0.00031918,2]
[338412853,1726613447939,-500.0,0.00031978,2]
[338412854,1726613447949,-200.0,0.00032,2]
[338412855,1726613447959,-1000.0,0.00032,7]
[338412856,1726613447969,-150.0,0.00032,30]
[338412857,1726613447979,-2000.0,0.00032,120]
[338412858,1726613447988,-402.595562,0.00032,2]
[338412859,1726613447998,-1000.0,0.00032,120]
[338412860,1726613448009,-1000.0,0.00032,120]
[338412861,1726613448019,-1000.0,0.00032,120]
[338412862,1726613448031,-500.0,0.00032007,2]
[338412863,1726613448042,-4067.79,0.000321,14]
[338412864,1726613448053,-296.39315972,0.0003212,10]
[338412865,1726613448063,-50190.28,0.000322,14]
[338412866,1726613448073,-4595.92,0.00032217,10]
[338412867,1726613448084,-500.0,0.00032219,60]
[338412868,1726613448097,-151.0,0.000323,7]
[338412869,1726613448107,-151.0,0.000323,7]
[338412870,1726613448118,-154.023584,0.000323,7]
[338412871,1726613448129,-151.0,0.000323,7]
[338412872,1726613448139,-151.0,0.000323,7]
[338412873,1726613448149,-151.0,0.000323,7]
[338412874,1726613448161,-307.435287,0.000323,7]
[338412875,1726613448174,-161.163753,0.000323,7]
[338412876,1726613448185,-161.163753,0.000323,7]
[338412877,1726613448195,-151.0,0.000323,7]
[338412878,1726613448208,-151.0,0.000323,7]
[338412879,1726613448219,-151.0,0.000323,7]
[338412880,1726613448231,-151.0,0.000323,7]
[338412881,1726613448242,-166.421048,0.000323,7]
[338412882,1726613448253,-151.0,0.000323,7]